fUST/lending_fUST_20250607
["ID","MTS","AMOUNT","RATE_DAILY","PERIOD"]
[364896086,1749286240486,-0.01000044,0.00020136,3]
[364896336,1749286242944,151.0,0.0002,2]
[364896338,1749286243088,-796.2873632,0.00020136,3]
[364896731,1749286247107,-170.55809536,0.00020136,3]
[364896733,1749286247117,-90.02843123,0.0002025,2]
[364897030,1749286250278,500.0,0.00019178,2]
[364897337,1749286253751,440.0,0.00019178,2]
[364899062,1749286272185,-300.0,0.00020249,2]
[364899065,1749286272209,-300.0,0.00020249,2]
[364899069,1749286272233,-964.80357881,0.0002025,2]
[364899072,1749286272257,-151.0,0.0002025,2]
[364899076,1749286272283,-169.564358,0.0002025,2]
[364899079,1749286272306,-234.472926,0.0002025,2]
[364899082,1749286272329,-151.0,0.0002025,2]
[364899086,1749286272353,-529.704045,0.0002025,2]
[364899089,1749286272376,-529.704045,0.0002025,2]
[364899092,1749286272398,-151.0,0.0002025,2]
[364899096,1749286272425,-160.0,0.0002025,2]
[364899099,1749286272448,-160.0,0.0002025,2]
[364899103,1749286272471,-151.0,0.00020273,2]
[364899106,1749286272494,-151.0,0.00020273,2]
[364899110,1749286272521,-151.0,0.00020273,2]
[364899113,1749286272544,-151.0,0.00020273,2]
[364899116,1749286272568,-264.370344,0.00020273,2]
[364899120,1749286272592,-264.370344,0.00020273,2]
[364899123,1749286272615,-151.0,0.00020273,2]
[364899126,1749286272638,-151.0,0.00020273,2]
[364899130,1749286272661,-151.0,0.00020273,2]
[364899133,1749286272685,-151.0,0.00020273,2]
[364899136,1749286272708,-151.0,0.00020273,2]
[364899140,1749286272731,-151.0,0.00020273,2]
[364899143,1749286272755,-151.0,0.00020273,2]
[364899147,1749286272777,-298.674796,0.00020273,2]
[364899150,1749286272800,-151.0,0.00020273,2]
[364899153,1749286272823,-440.0,0.00020273,2]
[364899157,1749286272847,-302.798251,0.00020273,2]
[364899160,1749286272870,-151.0,0.00020273,2]
[364899163,1749286272893,-151.0,0.00020273,2]
[364899166,1749286272915,-151.0,0.00020273,2]
[364899170,1749286272938,-174.844426,0.00020273,2]
[364899173,1749286272960,-174.844426,0.00020273,2]
[364899176,1749286272982,-151.0,0.00020273,2]
[364899180,1749286273004,-151.0,0.00020273,2]
[364899183,1749286273026,-151.0,0.00020273,2]
[364899186,1749286273050,-168.875468,0.00020273,2]
[364899190,1749286273074,-168.875468,0.00020273,2]
[364899193,1749286273097,-151.0,0.00020273,2]
[364899196,1749286273127,-509.94246562,0.00020273,2]
[364899200,1749286273151,-151.0,0.00020273,2]
[364899204,1749286273175,-385.37,0.00020273,2]
[364899207,1749286273198,-151.0,0.00020273,2]
[364899210,1749286273221,-151.0,0.00020273,2]
[364899214,1749286273250,-440.0,0.00020273,2]
[364899217,1749286273275,-440.0,0.00020273,2]
[364899220,1749286273299,-151.0,0.00020273,2]
[364899224,1749286273324,-440.0,0.00020273,2]
[364899228,1749286273351,-972.55,0.00020273,2]
[364899231,1749286273376,-440.0,0.00020273,2]
[364899235,1749286273400,-174.055378,0.00020273,2]
[364899238,1749286273424,-10987.09,0.00020273,2]
[364899242,1749286273450,-440.0,0.00020273,2]
[364899246,1749286273475,-543.24,0.00020273,2]
[364899249,1749286273500,-474.4455224,0.00020273,2]
[364899253,1749286273525,-440.0,0.00020273,2]
[364899256,1749286273549,-151.0,0.00020273,2]
[364899260,1749286273573,-440.0,0.00020273,2]
[364899263,1749286273599,-841.83,0.00020273,2]
[364899265,1749286273624,-440.0,0.00020273,2]
[364899268,1749286273649,-656.25,0.00020273,2]
[364899270,1749286273671,-440.0,0.00020273,2]
[364899272,1749286273695,-151.0,0.00020273,2]
[364899275,1749286273718,-800.0,0.0002028,2]
[364899278,1749286273741,-151.0,0.0002028,2]
[364899280,1749286273764,-321.94390946,0.00020371,2]
[364899282,1749286273788,-800.0,0.00020498,2]
[364899285,1749286273810,-800.0,0.00020509,2]
[364899287,1749286273835,-440.0,0.00020547,2]
[364899290,1749286273858,-151.0,0.00020547,2]
[364899292,1749286273883,-151.0,0.00020547,2]
[364899294,1749286273907,-151.0,0.00020547,2]
[364899297,1749286273931,-169.564358,0.00020547,2]
[364899300,1749286273957,-151.0,0.00020547,2]
[364899302,1749286273981,-529.704045,0.00020547,2]
[364899305,1749286274006,-529.704045,0.00020547,2]
[364899308,1749286274030,-151.0,0.00020547,2]
[364899310,1749286274053,-151.0,0.00020547,2]
[364899313,1749286274077,-440.0,0.00020547,2]
[364899330,1749286274308,-440.0,0.00020547,2]
[364899333,1749286274340,-972.55,0.00020547,2]
[364899336,1749286274368,-440.0,0.00020547,2]
[364899339,1749286274392,-10987.09,0.00020547,2]
[364899342,1749286274421,-440.0,0.00020547,2]
[364899345,1749286274449,-543.24,0.00020547,2]
[364899348,1749286274475,-440.0,0.00020547,2]
[364899351,1749286274501,-231.25938508,0.00020547,2]
[364899353,1749286274527,-841.83,0.00020547,2]
[364899356,1749286274555,-440.0,0.00020547,2]
[364899359,1749286274583,-656.25,0.00020547,2]
[364899362,1749286274607,-440.0,0.00020547,2]
[364899365,1749286274630,-151.0,0.00020547,2]
[364899368,1749286274654,-261.64743262,0.00020548,2]
[364899370,1749286274679,-500.0,0.00020548,2]
[364899373,1749286274702,-570.73,0.000206,2]
[364899376,1749286274725,-1413.46,0.000206,2]
[364899378,1749286274747,-500.0,0.00020733,2]
[364899381,1749286274771,-151.0,0.00020762,2]
[364899384,1749286274794,-302.798251,0.00020762,2]
[364899386,1749286274818,-600.0,0.00020765,2]
[364899389,1749286274842,-151.0,0.00020817,2]
[364899392,1749286274866,-151.0,0.00020818,2]
[364899394,1749286274889,-151.600059,0.00020818,2]
[364899397,1749286274915,-151.0,0.00020818,2]
[364899400,1749286274939,-264.370344,0.00020818,2]
[364899403,1749286274963,-264.370344,0.00020818,2]
[364899406,1749286274988,-151.0,0.00020818,2]
[364899408,1749286275013,-262.374309,0.00020818,2]
[364899411,1749286275036,-151.0,0.00020818,2]
[364899414,1749286275060,-151.0,0.00020818,2]
[364899417,1749286275084,-151.0,0.00020818,2]
[364899419,1749286275108,-174.844426,0.00020818,2]
[364899422,1749286275131,-174.844426,0.00020818,2]
[364899424,1749286275154,-153.73147,0.00020819,2]
[364899427,1749286275177,-151.0,0.00020821,2]
[364899430,1749286275200,-151.0,0.00020821,2]
[364899432,1749286275223,-151.0,0.00020821,2]
[364899435,1749286275246,-440.0,0.00020821,2]
[364899438,1749286275274,-151.0,0.00020821,2]
[364899440,1749286275296,-151.0,0.00020821,2]
[364899443,1749286275318,-151.0,0.00020821,2]
[364899446,1749286275341,-151.0,0.00020821,2]
[364899448,1749286275366,-151.0,0.00020821,2]
[364899451,1749286275390,-152.732074,0.00020821,2]
[364899454,1749286275413,-168.875468,0.00020821,2]
[364899457,1749286275437,-168.875468,0.00020821,2]
[364899459,1749286275461,-151.0,0.00020821,2]
[364899462,1749286275484,-151.0,0.00020821,2]
[364899465,1749286275507,-535.17711405,0.00020821,2]
[364899467,1749286275530,-255.527654,0.00020821,2]
[364899470,1749286275554,-440.0,0.00020821,2]
[364899473,1749286275579,-972.55,0.00020821,2]
[364899475,1749286275604,-589.54,0.00020821,2]
[364899479,1749286275627,-10987.09,0.00020821,2]
[364899482,1749286275653,-397.64,0.00020821,2]
[364899484,1749286275680,-543.24,0.00020821,2]
[364899485,1749286275705,-440.0,0.00020821,2]
[364899486,1749286275731,-841.83,0.00020821,2]
[364899487,1749286275757,-440.0,0.00020821,2]
[364899488,1749286275785,-656.25,0.00020821,2]
[364899489,1749286275807,-440.0,0.00020821,2]
[364899490,1749286275841,-844.17090136,0.000209,4]
[364899491,1749286275865,-1000.0,0.00021,21]
[364899492,1749286275887,-151.0,0.00021,2]
[364899493,1749286275912,-529.704045,0.00021,2]
[364899494,1749286275940,-529.704045,0.00021,2]
[364899495,1749286275963,-151.0,0.00021,2]
[364899497,1749286275985,-151.0,0.00021,2]
[364899500,1749286276008,-151.0,0.00021,2]
[364899504,1749286276038,-844.17090108,0.00021038,4]
[364899508,1749286276062,-154.07897808,0.0002104,2]
[364899511,1749286276085,-800.98,0.00021085,10]
[364899514,1749286276108,-151.420524,0.00021095,2]
[364899518,1749286276130,-152.975073,0.00021095,2]
[364899521,1749286276152,-151.0,0.00021095,2]
[364899524,1749286276177,-151.0,0.00021095,2]
[364899528,1749286276199,-264.370344,0.00021095,2]
[364899531,1749286276222,-264.370344,0.00021095,2]
[364899534,1749286276244,-151.0,0.00021095,2]
[364899538,1749286276268,-151.0,0.00021095,2]
[364899541,1749286276295,-151.0,0.00021095,2]
[364899545,1749286276318,-151.0,0.00021095,2]
[364899548,1749286276342,-440.0,0.00021095,2]
[364899551,1749286276366,-302.798251,0.00021095,2]
[364899555,1749286276389,-151.0,0.00021095,2]
[364899558,1749286276411,-174.844426,0.00021095,2]
[364899561,1749286276434,-174.844426,0.00021095,2]
[364899565,1749286276456,-151.0,0.00021095,2]
[364899568,1749286276481,-169.564358,0.00021095,2]
[364899571,1749286276504,-169.564358,0.00021095,2]
[364899575,1749286276527,-168.875468,0.00021095,2]
[364899578,1749286276550,-168.875468,0.00021095,2]
[364899582,1749286276575,-440.0,0.00021095,2]
[364899585,1749286276600,-972.55,0.00021095,2]
[364899589,1749286276625,-10987.09,0.00021095,2]
[364899593,1749286276650,-543.24,0.00021095,2]
[364899596,1749286276676,-440.0,0.00021095,2]
[364899600,1749286276702,-841.83,0.00021095,2]
[364899604,1749286276726,-440.0,0.00021095,2]
[364899607,1749286276751,-656.25,0.00021095,2]
[364899611,1749286276775,-440.0,0.00021095,2]
[364899614,1749286276797,-2388.0,0.00021154,2]
[364899618,1749286276820,-265.491957,0.00021154,2]
[364899621,1749286276844,-151.0,0.00021154,2]
[364899625,1749286276874,-844.17090108,0.00021176,4]
[364899628,1749286276897,-854.28821328,0.00021269,2]
[364899632,1749286276921,-215.0738,0.0002129,2]
[364899636,1749286276955,-844.17090108,0.00021314,5]
[364899640,1749286276978,-151.0,0.00021365,2]
[364899643,1749286277000,-151.0,0.00021366,2]
[364899647,1749286277025,-151.0,0.00021366,2]
[364899650,1749286277048,-151.0,0.00021366,2]
[364899653,1749286277070,-151.0,0.00021369,2]
[364899657,1749286277093,-440.0,0.00021369,2]
[364899660,1749286277116,-151.0,0.00021369,2]
[364899664,1749286277139,-151.0,0.00021369,2]
[364899667,1749286277161,-151.0,0.00021369,2]
[364899670,1749286277184,-529.704045,0.00021369,2]
[364899674,1749286277207,-529.704045,0.00021369,2]
[364899677,1749286277230,-151.0,0.00021369,2]
[364899680,1749286277254,-151.0,0.00021369,2]
[364899684,1749286277280,-151.0,0.00021369,2]
[364899687,1749286277304,-307.37,0.00021369,2]
[364899691,1749286277330,-972.55,0.00021369,2]
[364899694,1749286277355,-10987.09,0.00021369,2]
[364899699,1749286277381,-543.24,0.00021369,2]
[364899702,1749286277407,-440.0,0.00021369,2]
[364899706,1749286277435,-841.83,0.00021369,2]
[364899710,1749286277461,-440.0,0.00021369,2]
[364899714,1749286277488,-656.25,0.00021369,2]
[364899717,1749286277510,-440.0,0.00021369,2]
[364899720,1749286277534,-151.0,0.00021369,2]
[364899724,1749286277564,-844.17090108,0.00021452,5]
[364899728,1749286277588,-169.564358,0.00021452,2]
[364899731,1749286277610,-169.564358,0.00021452,2]
[364899747,1749286277749,-316.0017448,0.00021556,2]
[364899751,1749286277782,-844.17090108,0.0002159,5]
[364899755,1749286277807,-262.69,0.00021633,3]
[364899758,1749286277831,-788.11,0.00021633,3]
[364899762,1749286277855,-965.62,0.00021641,2]
[364899765,1749286277879,-709.0,0.00021641,2]
[364899768,1749286277901,-2223.0,0.00021641,2]
[364899771,1749286277924,-405.0,0.00021641,2]
[364899775,1749286277947,-151.0,0.00021643,2]
[364899778,1749286277970,-165.470631,0.00021643,2]
[364899781,1749286277993,-264.370344,0.00021643,2]
[364899785,1749286278016,-264.370344,0.00021643,2]
[364899788,1749286278039,-151.0,0.00021643,2]
[364899791,1749286278063,-151.0,0.00021643,2]
[364899795,1749286278088,-151.0,0.00021643,2]
[364899798,1749286278110,-153.73684,0.00021643,2]
[364899801,1749286278134,-440.0,0.00021643,2]
[364899804,1749286278157,-302.798251,0.00021643,2]
[364899808,1749286278183,-151.0,0.00021643,2]
[364899811,1749286278206,-164.0,0.00021643,2]
[364899814,1749286278229,-151.0,0.00021643,2]
[364899818,1749286278253,-174.844426,0.00021643,2]
[364899821,1749286278279,-174.844426,0.00021643,2]
[364899825,1749286278305,-151.784888,0.00021643,2]
[364899828,1749286278330,-168.875468,0.00021643,2]
[364899831,1749286278355,-168.875468,0.00021643,2]
[364899835,1749286278379,-151.0,0.00021643,2]
[364899838,1749286278406,-972.55,0.00021643,2]
[364899842,1749286278430,-10987.09,0.00021643,2]
[364899845,1749286278455,-543.24,0.00021643,2]
[364899849,1749286278482,-440.0,0.00021643,2]
[364899852,1749286278509,-841.83,0.00021643,2]
[364899856,1749286278537,-440.0,0.00021643,2]
[364899860,1749286278565,-656.25,0.00021643,2]
[364899863,1749286278588,-440.0,0.00021643,2]
[364899867,1749286278612,-258.4,0.00021653,2]
[364899870,1749286278635,-260.4,0.00021653,2]
[364899873,1749286278659,-504.93471709,0.00021653,2]
[364899876,1749286278683,-258.4,0.00021653,2]
[364899880,1749286278707,-499.999998,0.0002168,2]
[364899883,1749286278732,-854.28821328,0.0002168,2]
[364899887,1749286278755,-160.0,0.00021708,2]
[364899890,1749286278778,-260.0,0.00021708,2]
[364899893,1749286278801,-500.0,0.00021708,2]
[364899896,1749286278823,-160.4,0.00021708,2]
[364899901,1749286278863,-844.17090108,0.00021728,5]
[364899905,1749286278886,-600.0,0.00021861,2]
[364899908,1749286278917,-844.17090108,0.00021866,6]
[364899912,1749286278941,-4405.33,0.000219,45]
[364899915,1749286278964,-3000.0,0.000219,2]
[364899919,1749286278991,-151.0,0.000219,2]
[364899922,1749286279015,-151.0,0.000219,2]
[364899925,1749286279038,-151.0,0.000219,2]
[364899929,1749286279063,-151.0,0.000219,2]
[364899932,1749286279088,-151.0,0.000219,2]
[364899936,1749286279113,-529.704045,0.000219,2]
[364899939,1749286279138,-529.704045,0.000219,2]
[364899942,1749286279162,-151.0,0.000219,2]
[364899946,1749286279185,-151.0,0.000219,2]
[364899949,1749286279208,-205.551375,0.000219,2]
[364899952,1749286279231,-1042.372635,0.000219,2]
[364899956,1749286279256,-151.0,0.000219,2]
[364899957,1749286279283,-154.07897808,0.00021906,2]
[364899958,1749286279306,-3000.0,0.0002191,2]
[364899959,1749286279332,-151.0,0.00021917,2]
[364899960,1749286279357,-264.370344,0.00021917,2]
[364899961,1749286279381,-264.370344,0.00021917,2]
[364899962,1749286279405,-194.913237,0.00021917,2]
[364899963,1749286279428,-151.0,0.00021917,2]
[364899965,1749286279455,-151.0,0.00021917,2]
[364899966,1749286279479,-440.0,0.00021917,2]
[364899970,1749286279502,-302.798251,0.00021917,2]
[364899973,1749286279527,-151.0,0.00021917,2]
[364899976,1749286279551,-174.844426,0.00021917,2]
[364899980,1749286279575,-174.844426,0.00021917,2]
[364899983,1749286279600,-169.564358,0.00021917,2]
[364899987,1749286279624,-169.564358,0.00021917,2]
[364899990,1749286279647,-168.875468,0.00021917,2]
[364899994,1749286279671,-168.875468,0.00021917,2]
[364899997,1749286279693,-400.0,0.00021917,2]
[364900000,1749286279715,-400.0,0.00021917,2]
[364900003,1749286279739,-400.0,0.00021917,2]
[364900006,1749286279761,-400.0,0.00021917,2]
[364900010,1749286279785,-400.0,0.00021917,2]
[364900013,1749286279807,-400.0,0.00021917,2]
[364900016,1749286279830,-400.0,0.00021917,2]
[364900020,1749286279853,-400.0,0.00021917,2]
[364900023,1749286279877,-400.0,0.00021917,2]
[364900027,1749286279901,-350.0,0.00021917,2]
[364900030,1749286279928,-972.55,0.00021917,2]
[364900033,1749286279953,-10987.09,0.00021917,2]
[364900037,1749286279980,-543.24,0.00021917,2]
[364900041,1749286280007,-440.0,0.00021917,2]
[364900044,1749286280032,-841.83,0.00021917,2]
[364900048,1749286280057,-440.0,0.00021917,2]
[364900051,1749286280084,-656.25,0.00021917,2]
[364900055,1749286280107,-440.0,0.00021917,2]
[364900058,1749286280132,-3000.0,0.0002192,2]
[364900062,1749286280157,-254.04229,0.0002192,7]
[364900065,1749286280180,-3000.0,0.0002193,2]
[364900068,1749286280205,-151.0,0.0002193,7]
[364900072,1749286280228,-3000.0,0.0002194,2]
[364900075,1749286280250,-151.0,0.0002194,7]
[364900078,1749286280276,-151.0,0.0002194,7]
[364900082,1749286280304,-151.0,0.0002194,7]
[364900085,1749286280330,-151.0,0.0002194,7]
[364900088,1749286280354,-3000.0,0.0002195,2]
[364900092,1749286280378,-151.0,0.0002195,7]
[364900095,1749286280402,-169.921127,0.0002195,7]
[364900099,1749286280426,-529.704045,0.0002195,7]
[364900103,1749286280450,-529.704045,0.0002195,7]
[364900106,1749286280473,-240.976976,0.0002195,7]
[364900109,1749286280496,-3000.0,0.0002196,2]
[364900113,1749286280518,-3000.0,0.0002197,2]
[364900116,1749286280540,-169.564358,0.0002197,7]
[364900119,1749286280563,-169.564358,0.0002197,7]
[364900122,1749286280586,-3000.0,0.0002198,2]
[364900126,1749286280608,-3000.0,0.0002199,2]
[364900129,1749286280631,-3972.78791634,0.00022,20]
[364900990,1749286289908,395.52,0.00023601,120]
[364901625,1749287100893,185.295165,0.00013699,2]
[364901631,1749287228101,-358.81,0.000181,14]
[364901632,1749287228123,-197.54225282,0.000181,2]
[364901633,1749287228144,-358.81,0.000183,14]
[364901634,1749287228166,-113.75772963,0.00018431,2]
[364901635,1749287243224,-1086.24227037,0.00018431,2]
[364901636,1749287243251,-300.0,0.00018432,2]
[364901637,1749287243274,-300.0,0.00018432,2]
[364901638,1749287243297,-300.0,0.00018432,2]
[364901639,1749287243319,-300.0,0.00018432,2]
[364901640,1749287243342,-300.0,0.00018433,2]
[364901641,1749287243365,-300.0,0.00018433,2]
[364901642,1749287243389,-8011.95025722,0.00018434,2]
[364901685,1749287432167,-300.0,0.00018433,2]
[364901686,1749287432178,-9.8670131,0.00018433,2]
[364901687,1749287432191,-290.1329869,0.00018433,2]
[364901688,1749287432201,-300.0,0.00018433,2]
[364901689,1749287432211,-1200.0,0.00018433,2]
[364901690,1749287432221,-13095.10820723,0.00018434,2]
[364901704,1749287432430,-3792.94153555,0.00018434,2]
[364901706,1749287432441,-358.81,0.000185,14]
[364901709,1749287432455,-2459.71,0.0001874,2]
[364901711,1749287432465,-358.81,0.000188,14]
[364901712,1749287432475,-461.65782068,0.000189,2]
[364901714,1749287432485,-358.81,0.00019,14]
[364901716,1749287432496,-248.44624882,0.00019009,2]
[364901718,1749287432506,-150.00723245,0.00019078,2]
[364901720,1749287432517,-440.0,0.00019178,2]
[364901722,1749287432527,-440.0,0.00019178,2]
[364901724,1749287432537,-440.0,0.00019178,2]
[364901726,1749287432548,-293.61760099,0.00019178,2]
[364901728,1749287432558,-576.6,0.00019178,2]
[364901730,1749287432568,-576.6,0.00019178,2]
[364901732,1749287432578,-440.0,0.00019178,2]
[364901734,1749287432588,-440.0,0.00019178,2]
[364901736,1749287432597,-430.0,0.00019178,2]
[364901738,1749287432607,-440.0,0.00019178,2]
[364901740,1749287432618,-430.0,0.00019178,2]
[364901742,1749287432628,-440.0,0.00019178,2]
[364901744,1749287432637,-440.0,0.00019178,2]
[364901746,1749287432647,-918.47,0.00019178,2]
[364901747,1749287432656,-440.0,0.00019178,2]
[364901748,1749287432667,-440.0,0.00019178,2]
[364901749,1749287432677,-6104.03,0.00019178,2]
[364901750,1749287432687,-440.0,0.00019178,2]
[364901751,1749287432698,-545.14,0.00019178,2]
[364901752,1749287432708,-440.0,0.00019178,2]
[364901753,1749287432718,-440.0,0.00019178,2]
[364901754,1749287432728,-440.0,0.00019178,2]
[364901755,1749287432738,-440.0,0.00019178,2]
[364901756,1749287432748,-440.0,0.00019178,2]
[364901757,1749287432761,-440.0,0.00019178,2]
[364901758,1749287432771,-440.0,0.00019178,2]
[364901759,1749287432781,-440.0,0.00019178,2]
[364901760,1749287432791,-440.0,0.00019178,2]
[364901761,1749287432802,-211.0,0.00019178,2]
[364901762,1749287432812,-440.0,0.00019178,2]
[364901763,1749287432822,-440.0,0.00019178,2]
[364901764,1749287432832,-440.0,0.00019178,2]
[364901765,1749287432842,-573.06,0.00019178,2]
[364901766,1749287432852,-440.0,0.00019178,2]
[364901768,1749287432862,-440.0,0.00019178,2]
[364901770,1749287432871,-443.61,0.00019178,2]
[364901771,1749287432881,-440.0,0.00019178,2]
[364901772,1749287432890,-440.0,0.00019178,2]
[364901773,1749287432900,-440.0,0.00019178,2]
[364901774,1749287432910,-440.0,0.00019178,2]
[364901775,1749287432920,-440.0,0.00019178,2]
[364901776,1749287432929,-440.0,0.00019178,2]
[364901777,1749287432939,-430.0,0.00019178,2]
[364901778,1749287432948,-1662.03,0.00019178,2]
[364901779,1749287432958,-185.729615,0.00019178,2]
[364901780,1749287432967,-358.81,0.000192,14]
[364901781,1749287432977,-1231.59622965,0.000194,2]
[364901782,1749287432987,-1231.5962295,0.000194,2]
[364901783,1749287432998,-1231.5962295,0.000194,2]
[364901784,1749287433009,-576.6,0.00019451,2]
[364901785,1749287433019,-407.72511344,0.00019452,2]
[364901786,1749287433029,-440.0,0.00019452,2]
[364901787,1749287433039,-440.0,0.00019452,2]
[364901788,1749287433050,-253.35698224,0.00019452,2]
[364901789,1749287433060,-440.0,0.00019452,2]
[364901790,1749287433072,-440.0,0.00019452,2]
[364901791,1749287433084,-440.0,0.00019452,2]
[364901792,1749287433095,-918.47,0.00019452,2]
[364901793,1749287433105,-440.0,0.00019452,2]
[364901794,1749287433115,-440.0,0.00019452,2]
[364901795,1749287433126,-6104.03,0.00019452,2]
[364901796,1749287433135,-440.0,0.00019452,2]
[364901797,1749287433146,-545.14,0.00019452,2]
[364901798,1749287433156,-440.0,0.00019452,2]
[364901799,1749287433167,-440.0,0.00019452,2]
[364901800,1749287433177,-440.0,0.00019452,2]
[364901801,1749287433187,-440.0,0.00019452,2]
[364901802,1749287433197,-455.58003865,0.00019452,2]
[364901803,1749287433207,-440.0,0.00019452,2]
[364901804,1749287433217,-440.0,0.00019452,2]
[364901805,1749287433227,-440.0,0.00019452,2]
[364901806,1749287433237,-573.06,0.00019452,2]
[364901807,1749287433247,-440.0,0.00019452,2]
[364901808,1749287433258,-443.61,0.00019452,2]
[364901809,1749287433268,-440.0,0.00019452,2]
[364901810,1749287433279,-440.0,0.00019452,2]
[364901811,1749287433288,-440.0,0.00019452,2]
[364901812,1749287433298,-440.0,0.00019452,2]
[364901813,1749287433308,-1662.03,0.00019452,2]
[364901814,1749287433318,-358.81,0.000195,14]
[364901815,1749287433329,-460.86154627,0.00019521,2]
[364901884,1749287438569,-504.52,0.00019178,2]
[364901886,1749287438579,-504.52,0.00019178,2]
[364901888,1749287438590,-201.87028084,0.00019451,2]
[364901891,1749287438602,-302.64971916,0.00019451,2]
[364901893,1749287438613,-770.73468323,0.00019521,2]
[364901895,1749287438624,-504.52,0.00019553,2]
[364901897,1749287438634,-153.06190237,0.00019554,2]
[364901899,1749287438644,-500.0,0.00019554,2]
[364901901,1749287438654,-207.4,0.00019554,2]
[364901903,1749287438664,-605.30701936,0.00019554,2]
[364901905,1749287438673,-151.3354925,0.00019554,2]
[364901907,1749287438683,-752.75982885,0.00019554,2]
[364901909,1749287438695,-417.14724398,0.00019554,2]
[364901911,1749287438706,-330.09292717,0.00019554,2]
[364901913,1749287438716,-500.0,0.00019554,2]
[364901915,1749287438725,-1500.0,0.00019554,2]
[364901917,1749287438735,-500.0,0.00019554,2]
[364901919,1749287438745,-1500.0,0.00019554,2]
[364901921,1749287438755,-500.0,0.00019554,2]
[364901923,1749287438769,-1500.0,0.00019554,2]
[364901925,1749287438779,-500.0,0.00019554,2]
[364901927,1749287438788,-1500.0,0.00019554,2]
[364901929,1749287438797,-500.0,0.00019554,2]
[364901931,1749287438808,-514.26776168,0.00019554,2]
[364901933,1749287438819,-5000.0,0.00019554,2]
[364901935,1749287438829,-286.50857892,0.00019554,2]
[364901937,1749287438840,-358.81,0.000197,14]
[364901939,1749287438850,-440.0,0.00019726,2]
[364901941,1749287438859,-440.0,0.00019726,2]
[364901943,1749287438869,-440.0,0.00019726,2]
[364901945,1749287438879,-440.0,0.00019726,2]
[364901947,1749287438888,-918.47,0.00019726,2]
[364901949,1749287438898,-440.0,0.00019726,2]
[364901951,1749287438908,-440.0,0.00019726,2]
[364901953,1749287438917,-6104.03,0.00019726,2]
[364901955,1749287438927,-440.0,0.00019726,2]
[364901957,1749287438936,-545.14,0.00019726,2]
[364901959,1749287438946,-440.0,0.00019726,2]
[364901961,1749287438955,-440.0,0.00019726,2]
[364901963,1749287438965,-440.0,0.00019726,2]
[364901965,1749287438975,-440.0,0.00019726,2]
[364901967,1749287438985,-440.0,0.00019726,2]
[364901969,1749287438995,-440.0,0.00019726,2]
[364901971,1749287439006,-440.0,0.00019726,2]
[364901973,1749287439016,-573.06,0.00019726,2]
[364901975,1749287439026,-440.0,0.00019726,2]
[364901977,1749287439036,-443.61,0.00019726,2]
[364901979,1749287439046,-440.0,0.00019726,2]
[364901981,1749287439056,-440.0,0.00019726,2]